Cogmind - Beta 15 @@@ ROGUE MODE // 2025.08.15 @ 12:58:28 Player: Zen9890 Result: Destroyed by 0V-END(R) with Subdweller Machine Gun Performance ------------- Evolutions (0) 0 Regions Visited (2) 400 Robots Destroyed (12) 60 Value Destroyed (353) 353 Prototype IDs (0) 0 Alien Tech Used (0) 0 Bonus (0) 0 TOTAL SCORE: 813 Bonus ------- None Cogmind --------- Core Integrity 0/250 Matter 300/300 Energy 100/100 System Corruption 0% Temperature Cool (0) Movement Core (150) Ox2 Location -10/Subcaves Parts ------- > --- POWER (1) -------- (None) > --- PROPULSION (2) --- (None) > --- UTILITY (2) ------ Small Storage Unit Hacking Suite > --- WEAPON (2) ------- Subdweller Machine Gun > --- INVENTORY (8) ---- Aluminum Leg Improved Heat Sink Subdweller Optics Improved Terrain Scanner Medium Armor Plating Grenade Launcher Mining Laser Peak State ------------ > --- POWER ------------ Improved Ion Engine > --- PROPULSION ------- Aluminum Leg Aluminum Leg > --- UTILITY ---------- Small Storage Unit Hacking Suite > --- WEAPON ----------- EM Pulse Gun Light Assault Rifle > --- INVENTORY -------- Light Ion Engine Wheel Wheel Improved Terrain Scanner Medium Armor Plating Medium Laser Mining Laser [Rating: 11] Favorites ----------- Power Ion Engine Engine Ion Engine Propulsion Aluminum Leg Leg Aluminum Leg Utility Small Storage Unit Device Improved Terrain Scanner Storage Small Storage Unit Hackware Hacking Suite Weapon EM Pulse Gun Energy Gun EM Pulse Gun Ballistic Gun Light Assault Rifle Special Weapon Mining Laser Build | -11 -10 -10 ------- Run | Yrd Mat Sub Slots Evolved . | . . . Power . | . . . Propulsion . | . . . Utility . | . . . Weapon . | . . . Parts Attached 15 | 9 4 2 Power 3 | 1 1 1 Engine 3 | 1 1 1 Core . | . . . Reactor . | . . . Propulsion 4 | 2 2 . Treads . | . . . Leg 4 | 2 2 . Wheel . | . . . Hover . | . . . Flight . | . . . Utility 3 | 2 1 . Device 1 | 1 . . Storage 1 | 1 . . Processor . | . . . Hackware 1 | . 1 . Protection . | . . . Artifact . | . . . Weapon 5 | 4 . 1 Energy Gun 2 | 2 . . Energy Cannon . | . . . Ballistic Gun 2 | 1 . 1 Ballistic Cannon . | . . . Launcher . | . . . Special Weapon 1 | 1 . . Impact Weapon . | . . . Slashing Weapon . | . . . Piercing Weapon . | . . . Special Melee Weapon . | . . . Unidentified Prototypes . | . . . Parts Lost 5 | . . 5 Power 2 | . . 2 Propulsion 2 | . . 2 Utility . | . . . Weapon 1 | . . 1 Highest Loss Streak 3 | . . 3 To Critical Strikes . | . . . Average Backups 5 | 4 7 7 Power . | . 1 . Propulsion 1 | 1 2 1 Utility . | . 2 3 Weapon 1 | 1 2 2 Tool/Special . | . . . Unused Backups 8 | . 2 6 Power . | . . . Propulsion 3 | . 1 2 Utility 4 | . 1 3 Weapon 1 | . . 1 Tool/Special . | . . . Average Slot Usage (%) 91 | . 100 86 Engine 7 | . 14 4 Leg 26 | . 28 26 Storage 14 | . 14 14 Hackware 13 | . 13 14 Energy Gun 12 | . 14 12 Ballistic Gun 13 | . 14 13 Peak Build Rating 11 | 9 11 11 Average Rating 9 | 8 10 10 On Entrance 6 | . 9 11 Naked Turns . | . . . Heaviest Build 15 | 15 15 15 Greatest Support 20 | 20 20 20 Greatest Overweight (x) . | . . . Average Overweight (x) . | . . . Largest Inventory Capacity 8 | 8 8 8 Average Capacity 7 | 7 8 8 Most Carried 8 | 5 8 8 Average Carried 5 | 4 7 7 Final Capacity 8 | 8 8 8 Final Carried 8 | 5 8 7 Class Distribution -------------------- 100% | Mutant Dominant Class ---------------- Mutant | -10/Materials Mutant | -10/Subcaves Resources | -11 -10 -10 ----------- Run | Yrd Mat Sub Matter Collected 401 | 310 33 58 Remotely . | . . . Salvage Created 421 | 77 253 91 Parts 30 | 9 14 7 Haulers Intercepted . | . . . Recyclers Shooed 2 | 1 1 . Parts Field Recycled . | . . . Retrieved Matter . | . . . Parts Self-Destructed 6 | . . 6 Prevented . | . . . Kills | -11 -10 -10 ------- Run | Yrd Mat Sub Combat Hostiles Destroyed 8 | 1 5 2 Guns 7 | 1 4 2 AOE 1 | . 1 . Classes Destroyed 5 | 2 2 1 Tunneler 3 | 3 . . Operator 1 | . 1 . Grunt 5 | . 5 . Demolisher 1 | 1 . . Subdweller 2 | . . 2 Best Kill Streak 3 | 1 3 1 Combat Bots Only 3 | 1 3 1 Max Kills in Single Turn 1 | 1 1 1 Gunslinging . | . . . Exploded 1 | . 1 . Melee . | . . . Uniques/NPCs Destroyed . | . . . Combat | -11 -10 -10 -------- Run | Yrd Mat Sub Hostile Shots Fired 84 | 6 28 50 Missed 29 | . 6 23 Hits 55 | 6 22 27 Projectile 55 | 6 22 27 AOE 6 | 6 . . Damage Taken 1015 | 199 250 566 Core 265 | 32 76 157 Absorbed by Shields . | . . . Core Remaining (%) 87 | 87 . . Volleys Fired 98 | 68 17 13 Largest 2 | 2 2 2 Hottest 100 | 100 60 100 Shots Fired 133 | 78 34 21 Gun 71 | 20 34 17 Cannon . | . . . Launcher . | . . . Special 62 | 58 . 4 Kinetic 26 | . 17 9 Thermal 72 | 68 . 4 Explosive . | . . . Electromagnetic 35 | 10 17 8 Robot Hit Streak 10 | 7 10 4 Robot Miss Streak 5 | 2 2 5 Penetration Max . | . . . Secondary Targets 1 | . 1 . Max Gunslinging Chain 1 | . 1 . Shots Hit Robots 44 | 13 22 9 Core Hits 21 | 6 11 4 Critical Kills . | . . . Critical Parts Destroyed . | . . . Critical Strikes 1 | 1 . . Corrupt 1 | 1 . . Melee Attacks . | . . . Impact . | . . . Slashing . | . . . Piercing . | . . . Sneak Attacks . | . . . Combat Hostiles . | . . . Follow-up Attacks . | . . . Damage Inflicted 565 | 159 292 114 Guns 537 | 159 264 114 Cannons . | . . . Explosions 28 | . 28 . Melee . | . . . Ramming . | . . . Kinetic 143 | . 77 66 Thermal 143 | 115 28 . Explosive . | . . . Electromagnetic 279 | 44 187 48 Impact . | . . . Slashing . | . . . Piercing . | . . . Highest Corruption . | . . . Average Corruption . | . . . Corruption Purged . | . . . Corruption Blocked . | . . . Overload Shots . | . . . Overflow Damage . | . . . Projectiles . | . . . Explosions . | . . . Melee . | . . . Knockbacks . | . . . Impact . | . . . Kinetic . | . . . Secondary . | . . . Self-Inflicted Damage 10 | . 10 . Shots 1 | . 1 . Rammed . | . . . Targets Rammed . | . . . Kicked . | . . . Crushed . | . . . Highest Temperature 232 | 232 126 . Average Temperature 72 | 78 42 . Received Heat Transfer 180 | . 138 42 Effects 2 | 2 . . Interference 2 | 2 . . Siege Activations . | . . . Martial Activations . | . . . Shielding Activations . | . . . Robots Disrupted . | . . . Combat Hostiles . | . . . Robots Corrupted . | . . . Combat Hostiles . | . . . Parts Fried 1 | . 1 . Impact Corruptions . | . . . Robots Melted . | . . . Combat Hostiles . | . . . Parts Melted . | . . . Heat Transferred 383 | 333 50 . Parts Sabotaged . | . . . Parts Stolen . | . . . Parts Stripped . | . . . Power Chain Reactions 1 | . 1 . Alert | -11 -10 -10 ------- Run | Yrd Mat Sub Maximum Alert Level . | . . . Low Security (%) 100 | 100 100 . Level 1 . | . . . Level 2 . | . . . Level 3 . | . . . Level 4 . | . . . Level 5 . | . . . High Security . | . . . Max Security . | . . . Peak Influence 70 | 30 70 . Initial 14 | . 14 . Average 3 | 1 28 . Influence Increases 202 | 45 157 . Destroy 0b10 Robot/C 120 | 20 100 . Destroy 0b10 Robot/NC 20 | 15 5 . Destroy Leader 30 | 10 20 . Destroy Structure 2 | . 2 . Partial Spotted 15 | . 15 . Lose Combat Pursuer 15 | . 15 . Influence Decreases 202 | 22 138 42 Entered New Map 30 | . 9 21 Time Decay 172 | 22 129 21 Squads Dispatched 1 | . 1 . Investigation 1 | . 1 . Extermination . | . . . Reinforcement . | . . . Assault . | . . . Garrison . | . . . Intercept . | . . . Searches Triggered . | . . . Construction Impeded . | . . . Haulers Reinforced . | . . . Active Scanning Responses . | . . . Cargo Convoy Interrupts . | . . . Stealth | -11 -10 -10 --------- Run | Yrd Mat Sub Distress Signals . | . . . Communications Jammed . | . . . Distress Signals . | . . . Times Spotted 16 | 1 8 7 Peak Tracking Total 5 | 1 3 5 Tactical Retreats 1 | . 1 . Traps | -11 -10 -10 ------- Run | Yrd Mat Sub Traps Triggered . | . . . Indirectly . | . . . Trap Hack Attempts . | . . . Triggered . | . . . Disarmed . | . . . Reprogrammed . | . . . Reused . | . . . Traps Extracted . | . . . Installed . | . . . Triggered . | . . . Machines | -11 -10 -10 ---------- Run | Yrd Mat Sub Machines Disabled . | . . . Max in Single Turn . | . . . Machines Repaired . | . . . Machines Dismantled . | . . . Machines Sabotaged . | . . . Overloaded Fab Kills . | . . . Hacking | -11 -10 -10 --------- Run | Yrd Mat Sub Machines Accessed 1 | . 1 . Terminals 1 | . 1 . Fabricators . | . . . Repair Stations . | . . . Recycling Units . | . . . Scanalyzers . | . . . Garrison Access . | . . . Total Hacks 4 | . 4 . Successful 1 | . 1 . Failed 3 | . 3 . Catastrophic 1 | . 1 . Database Lockouts . | . . . Manual 2 | . 2 . Terminals 4 | . 4 . Fabricators . | . . . Repair Stations . | . . . Recycling Units . | . . . Scanalyzers . | . . . Garrison Access . | . . . Terminal Hacks 1 | . 1 . Zone Layout 1 | . 1 . Fabricator Hacks . | . . . Repair Station Hacks . | . . . Recycling Unit Hacks . | . . . Scanalyzer . | . . . Garrison Access Hacks . | . . . Unauthorized Hacks . | . . . Terminals . | . . . Fabricators . | . . . Repair Stations . | . . . Recycling Units . | . . . Scanalyzers . | . . . Garrison Access . | . . . Data Cores Recovered 1 | . 1 . Used 1 | . 1 . Hacking Detections 1 | . 1 . Full Trace Events 1 | . 1 . Feedback Events . | . . . Feedback Blocked . | . . . Robot Schematics Acquired . | . . . Robots Built . | . . . Authchips . | . . . Time . | . . . Total Robot Build Rating . | . . . Part Schematics Acquired . | . . . Parts Built . | . . . Authchips . | . . . Time . | . . . Total Part Build Rating . | . . . Parts Repaired . | . . . Time . | . . . Parts Recycled . | . . . Recycled Matter . | . . . Retrieved Matter . | . . . Retrieved Components . | . . . Parts Scanalyzed . | . . . Part Schematics Acquired . | . . . Parts Damaged . | . . . Bothacking | -11 -10 -10 ------------ Run | Yrd Mat Sub Used RIF Installer . | . . . Robots Hacked . | . . . Non-combat . | . . . Combat . | . . . Robot Hacks Applied . | . . . Relay Couplers Released . | . . . Fabnet Peak Effective % . | . . . Robots Rewired . | . . . Allies Hacked . | . . . Hacks Repelled . | . . . Allies | -11 -10 -10 -------- Run | Yrd Mat Sub Total Allies . | . . . Largest Group . | . . . Highest-Rated Group . | . . . Highest-Rated Ally . | . . . Total Orders . | . . . Ally Attacks . | . . . Total Damage . | . . . Kills . | . . . Allies Corrupted . | . . . Allies Melted . | . . . Intel | -11 -10 -10 ------- Run | Yrd Mat Sub Active Infowar (turns) 2938 | 2924 14 . Terrain 2938 | 2924 14 . Robot Analysis Total . | . . . Derelict Logs Recovered 1 | . . 1 Drone Launches . | . . . Drone Recoveries . | . . . Exploration | -11 -10 -10 ------------- Run | Yrd Mat Sub Turns Passed 3946 | 3002 298 646 Spaces Moved 1312 | 721 108 483 Core 12 | 12 . . Treads . | . . . Legs 1300 | 709 108 483 Wheels . | . . . Hover . | . . . Flight . | . . . Fastest Speed 50 | 50 120 120 Average Speed 119 | 118 120 120 Slowest Speed 120 | 120 120 120 Overloaded Moves . | . . . Propulsion Burnouts . | . . . Robots Hopped . | . . . Potential Cave-ins . | . . . Cave-ins Triggered . | . . . Exploration Rate (%) 35 | 58 16 32 Regions Visited 2 Branch Regions 1 Pre-discovered Areas . | . . . Known Exits Taken . | . . . Unknown Exits Taken 2 | 1 1 . Scrap Searched 7 | . . 7 Spaces Dug 17 | 17 . . Terrain Destroyed 24 | 22 2 . Melee . | . . . Projectile 22 | 22 . . AOE 2 | . 2 . Terrain Rammed . | . . . Walls Destroyed . | . . . Machines Disabled . | . . . Actions | -11 -10 -10 --------- Run | Yrd Mat Sub Total 3440 | 2670 248 522 Wait 1984 | 1859 107 18 Move 1310 | 720 107 483 Hop . | . . . Pick Up 20 | 12 7 1 Fast Attach 1 | . . 1 Attach 9 | 7 . 2 Detach 1 | . . 1 Swap 9 | 4 4 1 Drop 8 | . 6 2 Fire 98 | 68 17 13 Melee . | . . . Ram . | . . . Kick . | . . . Crush . | . . . Escape Stasis . | . . . Rewire . | . . . Trap . | . . . Miscellaneous . | . . . Route ------- -11/Scrapyard -10/Materials -10/Subcaves History --------- Turn | Location | Event 7 | -11/Scrapyard | Discovered new exit (range 15) 2746 | -11/Scrapyard | Assembled infested the area 3003 | -11/Scrapyard | Entered Materials 3004 | -10/Materials | Build established: Mutant 3290 | -10/Materials | Discovered new exit (range 6) 3301 | -10/Materials | Entered Subcaves 3317 | -10/Subcaves | Learned Materials terminal intel 3423 | -10/Subcaves | Core integrity fell below 50% 3876 | -10/Subcaves | Core integrity fell below 20% 3907 | -10/Subcaves | Lost 3 parts (1p1n1w) 3940 | -10/Subcaves | Disturbed a concealed Subdweller 3947 | -10/Subcaves | Destroyed by 0V-END(R) with Subdweller Machine Gun Last Messages --------------- 03939_ Found 67 Matter. 03940_ 4E-EY8(R) angrily emerges from the Twisted Machinery. 03940_ Searching scrap... 03940_ Found Flamer. 03940_ Found Barrage Gun. 03940_ Found 59 Matter. 03941_ 4E-EY8(R): "SUB#$%&!" 03941_ Searching scrap... 03941_ Found Sub. Laser. 03941_ Found 62 Matter. 03942_ Searching scrap... 03942_ Found Mak. Thermal Plating. 03942_ Found Mak. Kinetic Plating. 03942_ Found 44 Matter. 03943_ Searching scrap... 03943_ Found Sub. Beam Cannon. 03943_ Found 61 Matter. 03945_ Aluminum Leg destroyed. 03947_ Acquired 2 matter. Map ----- +----------------------------------------------------+ | ???????????????????????????????????? | | ???????????????????????????????????? | | ???????????????????????????????????? | | ???????????????????????????????????? | | ???????????????????????????????????? | | ???????????????????????????????????? | | ???????????????????????????????????? | | ???????????????????????????????????? | | ???????????????????????????????????? | | ???????????????????????????????????? | | ???????????????????????????????????? | | ???????????????????????????????????? | | ???????????????????????????????????? | | ???????????????????????????????????? | | ????????????????????????#####??????? | | ???????????????????????## #??????# | | ??????????????????????## #?????## | | ???????????????????#### #????## | | ???????????#######?# #?????# | | ?????????###<<<<<#### ####??# | | ????????##< < ^<<### ##??# | | ????????#< &<& R ## # #### | | ???????##< << R ###" ## ## | | ???????# [|# #"" ## | | ???????#< [%%]# ## | | ???????#< !@ %*# ### | | ???????# !%%% # #" #?##### | | ???????# []RR## ## #?????# | | ???????#< R "# ????# | | ???????##< < <## ?? | | ????????#< <<< <<## | | ????????##<< <&### ## | | ?????????###<<<<#<#? ## ## | | ???????????######??? ## | | ???????????????????? ## | | ???????????????????? ### # | | ???????????????????? #?# ? # | | ???????????????????? ?? ? | | ???????????????????? ????????? ? | | ???????????????????? ???????????? | | ???????????????????????????????????? | | ???????????????????????????????????? | | ???????????????????????????????????? | | ???????????????????????????????????? | | ???????????????????????????????????? | | ???????????????????????????????????? | | ???????????????????????????????????? | | ???????????????????????????????????? | | ???????????????????????????????????? | | ???????????????????????????????????? | +----------------------------------------------------+ Best States ------------- Heat Dissipation 25 Energy Generation 12 Energy Capacity 265 Matter Stores 300 Matter Capacity 300 Sight Range 16 Terrain Scan Range 16 Terrain Scan Density 10 Evasion (%) 55 Offensive Hacking 10 Item Schematics ----------------- None Robot Schematics ------------------ None Fabricated ------------ Nothing Repaired ---------- Nothing Alien Tech Used ----------------- None Achievements -------------- Curiosity Killed The Cat Dynamic Key Challenges ------------ None Game ------ Seed ReinforcedChromionUnit Manual? 0 Play Time 00:16:24 Cumulative 14.9 hours Start 2025.08.15 @ 12:42:53 End 2025.08.15 @ 12:58:28 Sessions 1 Manual Loads 0 Difficulty Rogue Special Mode None Game No. 21 Rogue 21 Adventurer 0 Explorer 0 Win Type - Total 0 Types 0/0/0/0/0/0/0/0/0/0 Lore% 9 Gallery% 22 Achievement% 22 Wizard Run 0 Options --------- Layout 1 ASCII 0 Keyboard 0 Movement Mouse Keybinds 0 Fullscreen 1 Font 24/Smallcaps Map View 50x35 Zoom Use 0% Tactical HUD 1 Map Filters NONE Filters NONE Steam 1 RUN: 2837150d-8498-4193-aecd-49571637a8aa